[Event "Meltwater Champions Chess Tour 2022: Chessable Masters | Prelims"]
[White "Carlsen, Magnus"]
[Black "Vidit, Santosh Gujrathi"]
[WhiteFideId "1503014"]
[BlackFideId "5029465"]
[WhiteElo "2847"]
[BlackElo "2617"]
[Result "1-0"]
[Round "10"]
[TimeControl "900+10"]
[Date "2022.05.21"]
[WhiteClock "0:04:20"]
[BlackClock "0:00:22"]

1. d3 {[%clk 0:15:20]}  c5 {[%clk 0:15:20]} 2. e4 {[%clk 0:15:22]}  Nc6 {[%clk 0:15:26]} 3. f4 {[%clk 0:15:28]}  g6 {[%clk 0:15:21]} 4. Nf3 {[%clk 0:15:31]}  Bg7 {[%clk 0:15:30]} 5. Be2 {[%clk 0:15:35]}  d6 {[%clk 0:14:24]} 6. O-O {[%clk 0:15:40]}  Nf6 {[%clk 0:14:27]} 7. Qe1 {[%clk 0:15:46]}  O-O {[%clk 0:14:31]} 8. Nc3 {[%clk 0:14:20]}  Nd4 {[%clk 0:14:08]} 9. Bd1 {[%clk 0:14:21]}  Bd7 {[%clk 0:12:36]} 10. Qh4 {[%clk 0:14:18]}  Bg4 {[%clk 0:11:24]} 11. Nxd4 {[%clk 0:12:57]}  cxd4 {[%clk 0:11:32]} 12. Ne2 {[%clk 0:12:35]}  Rc8 {[%clk 0:10:55]} 13. Qf2 {[%clk 0:12:34]}  Qb6 {[%clk 0:09:50]} 14. h3 {[%clk 0:12:24]}  Bxe2 {[%clk 0:09:30]} 15. Qxe2 {[%clk 0:12:19]}  Rc7 {[%clk 0:08:53]} 16. Qf2 {[%clk 0:12:12]}  Nd7 {[%clk 0:08:44]} 17. a4 {[%clk 0:11:34]}  a5 {[%clk 0:08:48]} 18. Ra3 {[%clk 0:11:41]}  Nc5 {[%clk 0:08:15]} 19. f5 {[%clk 0:07:28]}  Qc6 {[%clk 0:08:22]} 20. Bd2 {[%clk 0:06:57]}  Nxa4 {[%clk 0:07:26]} 21. c4 {[%clk 0:06:16]}  Nxb2 {[%clk 0:06:19]} 22. Bf3 {[%clk 0:05:56]}  b5 {[%clk 0:06:09]} 23. Bxa5 {[%clk 0:05:34]}  Nxd3 {[%clk 0:03:58]} 24. Rxd3 {[%clk 0:05:40]}  bxc4 {[%clk 0:04:07]} 25. f6 {[%clk 0:04:36]}  cxd3 {[%clk 0:03:48]} 26. fxg7 {[%clk 0:04:43]}  Kxg7 {[%clk 0:03:25]} 27. Bxc7 {[%clk 0:04:50]}  Qxc7 {[%clk 0:03:34]} 28. Qxd4+ {[%clk 0:04:59]}  Kg8 {[%clk 0:03:40]} 29. Qxd3 {[%clk 0:05:08]}  Qc5+ {[%clk 0:03:47]} 30. Kh1 {[%clk 0:05:15]}  Kg7 {[%clk 0:03:16]} 31. Bd1 {[%clk 0:05:03]}  Qe5 {[%clk 0:02:56]} 32. Bb3 {[%clk 0:05:10]}  e6 {[%clk 0:02:19]} 33. Bd1 {[%clk 0:05:09]}  Ra8 {[%clk 0:02:13]} 34. Qf3 {[%clk 0:05:08]}  Rf8 {[%clk 0:01:12]} 35. Be2 {[%clk 0:05:11]}  h5 {[%clk 0:01:11]} 36. Bc4 {[%clk 0:04:30]}  Kg8 {[%clk 0:01:08]} 37. Rb1 {[%clk 0:04:23]}  Kg7 {[%clk 0:01:07]} 38. Rb7 {[%clk 0:04:02]}  Qa1+ {[%clk 0:01:09]} 39. Bf1 {[%clk 0:04:05]}  Qf6 {[%clk 0:01:11]} 40. Rd7 {[%clk 0:04:10]}  Qe5 {[%clk 0:00:41]} 41. g3 {[%clk 0:04:06]}  Kg8 {[%clk 0:00:32]} 42. Bg2 {[%clk 0:04:00]}  Kg7 {[%clk 0:00:36]} 43. h4 {[%clk 0:03:52]}  Qd4 {[%clk 0:00:23]} 44. Qf4 {[%clk 0:03:46]}  Qe5 {[%clk 0:00:13]} 45. Rxd6 {[%clk 0:03:55]}  Qxf4 {[%clk 0:00:22]} 46. gxf4 {[%clk 0:04:05]}  Rc8 {[%clk 0:00:30]} 47. Rd3 {[%clk 0:04:07]}  Rc2 {[%clk 0:00:36]} 48. Kh2 {[%clk 0:04:16]}  Kf6 {[%clk 0:00:39]} 49. Kg3 {[%clk 0:04:23]}  Ra2 {[%clk 0:00:42]} 50. Bf3 {[%clk 0:04:29]}  Ke7 {[%clk 0:00:48]} 51. Rb3 {[%clk 0:04:36]}  Kf6 {[%clk 0:00:50]} 52. e5+ {[%clk 0:03:46]}  Kg7 {[%clk 0:00:58]} 53. f5 {[%clk 0:03:55]}  gxf5 {[%clk 0:00:14]} 54. Bxh5 {[%clk 0:04:03]}  f6 {[%clk 0:00:13]} 55. Rb7+ {[%clk 0:03:24]}  Kh6 {[%clk 0:00:22]} 56. Bf3 {[%clk 0:03:18]}  fxe5 {[%clk 0:00:28]} 57. Rb6 {[%clk 0:03:26]}  e4 {[%clk 0:00:11]} 58. Rxe6+ {[%clk 0:03:35]}  Kg7 {[%clk 0:00:21]} 59. Bh5 {[%clk 0:03:43]}  Ra5 {[%clk 0:00:12]} 60. Kf4 {[%clk 0:03:49]}  Rc5 {[%clk 0:00:21]} 61. Bg6 {[%clk 0:03:42]}  e3 {[%clk 0:00:26]} 62. Bxf5 {[%clk 0:03:50]}  Rc4+ {[%clk 0:00:33]} 63. Kg5 {[%clk 0:03:59]}  Rc7 {[%clk 0:00:34]} 64. Rxe3 {[%clk 0:04:07]}  Kf8 {[%clk 0:00:42]} 65. Kh6 {[%clk 0:04:00]}  Kg8 {[%clk 0:00:25]} 66. Re8+ {[%clk 0:04:07]}  Kf7 {[%clk 0:00:34]} 67. Bg6+ {[%clk 0:04:15]}  Kf6 {[%clk 0:00:22]} 68. h5 {[%clk 0:04:20]} 1-0


[Site "http://www.chessbomb.com"]

[Event "Meltwater Champions Chess Tour 2022: Chessable Masters | Prelims"]
[White "Wei, Yi"]
[Black "Shankland, Sam"]
[WhiteFideId "8603405"]
[BlackFideId "2004887"]
[WhiteElo "2752"]
[BlackElo "2616"]
[Result "1/2-1/2"]
[Round "10"]
[TimeControl "900+10"]
[Date "2022.05.21"]
[WhiteClock "0:00:59"]
[BlackClock "0:01:55"]

1. d4 {[%clk 0:15:20]}  d5 {[%clk 0:15:20]} 2. c4 {[%clk 0:15:24]}  c6 {[%clk 0:15:29]} 3. Nf3 {[%clk 0:15:32]}  Nf6 {[%clk 0:15:38]} 4. Nc3 {[%clk 0:15:40]}  e6 {[%clk 0:15:47]} 5. Qd3 {[%clk 0:15:47]}  Nbd7 {[%clk 0:15:02]} 6. e4 {[%clk 0:15:55]}  dxc4 {[%clk 0:13:39]} 7. Qxc4 {[%clk 0:16:02]}  Be7 {[%clk 0:13:48]} 8. Bf4 {[%clk 0:14:07]}  O-O {[%clk 0:13:06]} 9. Be2 {[%clk 0:13:33]}  c5 {[%clk 0:12:12]} 10. dxc5 {[%clk 0:12:51]}  Nxc5 {[%clk 0:11:52]} 11. Rd1 {[%clk 0:12:11]}  Bd7 {[%clk 0:11:40]} 12. b4 {[%clk 0:12:01]}  Na6 {[%clk 0:10:43]} 13. a3 {[%clk 0:12:06]}  Rc8 {[%clk 0:10:40]} 14. Qb3 {[%clk 0:11:07]}  Qb6 {[%clk 0:10:04]} 15. e5 {[%clk 0:10:29]}  Nd5 {[%clk 0:06:40]} 16. Nxd5 {[%clk 0:10:15]}  exd5 {[%clk 0:06:49]} 17. O-O {[%clk 0:10:10]}  Nc7 {[%clk 0:06:54]} 18. Nd4 {[%clk 0:09:24]}  a5 {[%clk 0:06:35]} 19. Be3 {[%clk 0:09:04]}  axb4 {[%clk 0:05:37]} 20. Nf5 {[%clk 0:09:12]}  Qe6 {[%clk 0:05:46]} 21. Bg4 {[%clk 0:09:14]}  Kh8 {[%clk 0:05:29]} 22. Bd4 {[%clk 0:05:11]}  Nb5 {[%clk 0:04:21]} 23. axb4 {[%clk 0:03:16]}  Rc4 {[%clk 0:02:33]} 24. Bh3 {[%clk 0:03:14]}  Nxd4 {[%clk 0:02:01]} 25. Nxd4 {[%clk 0:03:12]}  Qb6 {[%clk 0:02:10]} 26. Bxd7 {[%clk 0:01:01]}  Rxd4 {[%clk 0:02:19]} 27. b5 {[%clk 0:00:50]}  Qc5 {[%clk 0:01:17]} 28. Qf3 {[%clk 0:00:33]}  Re4 {[%clk 0:01:11]} 29. Rfe1 {[%clk 0:00:20]}  Rxe1+ {[%clk 0:00:56]} 30. Rxe1 {[%clk 0:00:29]}  Qd4 {[%clk 0:01:05]} 31. g3 {[%clk 0:00:24]}  g6 {[%clk 0:01:00]} 32. Kg2 {[%clk 0:00:23]}  Kg7 {[%clk 0:01:09]} 33. h4 {[%clk 0:00:20]}  h5 {[%clk 0:01:05]} 34. Qe2 {[%clk 0:00:16]}  Ra8 {[%clk 0:00:59]} 35. Rd1 {[%clk 0:00:14]}  Qc4 {[%clk 0:00:42]} 36. Qf3 {[%clk 0:00:22]}  Bc5 {[%clk 0:00:33]} 37. Qxd5 {[%clk 0:00:19]}  Qxd5+ {[%clk 0:00:27]} 38. Rxd5 {[%clk 0:00:27]}  b6 {[%clk 0:00:36]} 39. Rd2 {[%clk 0:00:12]}  Rd8 {[%clk 0:00:45]} 40. f4 {[%clk 0:00:13]}  Kf8 {[%clk 0:00:50]} 41. Rd5 {[%clk 0:00:22]}  Ke7 {[%clk 0:00:58]} 42. Bc6 {[%clk 0:00:30]}  Rxd5 {[%clk 0:01:07]} 43. Bxd5 {[%clk 0:00:40]}  Bd4 {[%clk 0:01:17]} 44. Kf3 {[%clk 0:00:48]}  Bc3 {[%clk 0:01:21]} 45. g4 {[%clk 0:00:22]}  Be1 {[%clk 0:01:06]} 46. gxh5 {[%clk 0:00:21]}  gxh5 {[%clk 0:01:15]} 47. f5 {[%clk 0:00:24]}  f6 {[%clk 0:01:21]} 48. exf6+ {[%clk 0:00:32]}  Kxf6 {[%clk 0:01:30]} 49. Bc6 {[%clk 0:00:41]}  Bxh4 {[%clk 0:01:38]} 50. Be8 {[%clk 0:00:50]}  Kxf5 {[%clk 0:01:47]} 51. Bxh5 {[%clk 0:00:59]}  Ke5 {[%clk 0:01:55]} 1/2-1/2


[Site "http://www.chessbomb.com"]

[Event "Meltwater Champions Chess Tour 2022: Chessable Masters | Prelims"]
[White "Giri, Anish"]
[Black "Mishra, Abhimanyu"]
[WhiteFideId "24116068"]
[BlackFideId "30920019"]
[WhiteElo "2730"]
[BlackElo "2524"]
[Result "1-0"]
[Round "10"]
[TimeControl "900+10"]
[Date "2022.05.21"]
[WhiteClock "0:01:09"]
[BlackClock "0:00:18"]

1. Nf3 {[%clk 0:15:20]}  d5 {[%clk 0:15:20]} 2. d4 {[%clk 0:15:29]}  Nf6 {[%clk 0:15:28]} 3. c4 {[%clk 0:15:38]}  c6 {[%clk 0:15:37]} 4. e3 {[%clk 0:15:47]}  e6 {[%clk 0:15:46]} 5. Bd3 {[%clk 0:15:56]}  dxc4 {[%clk 0:15:55]} 6. Bxc4 {[%clk 0:16:06]}  Nbd7 {[%clk 0:16:04]} 7. O-O {[%clk 0:16:14]}  Bd6 {[%clk 0:16:13]} 8. Nc3 {[%clk 0:16:23]}  b5 {[%clk 0:16:22]} 9. Bb3 {[%clk 0:16:32]}  b4 {[%clk 0:15:43]} 10. Na4 {[%clk 0:16:38]}  Bb7 {[%clk 0:14:14]} 11. e4 {[%clk 0:16:43]}  Nxe4 {[%clk 0:13:59]} 12. Re1 {[%clk 0:16:50]}  Nef6 {[%clk 0:12:55]} 13. Ng5 {[%clk 0:16:57]}  O-O {[%clk 0:09:54]} 14. Nxe6 {[%clk 0:17:03]}  fxe6 {[%clk 0:09:44]} 15. Rxe6 {[%clk 0:17:11]}  Nd5 {[%clk 0:08:50]} 16. Rxd6 {[%clk 0:17:16]}  Qe7 {[%clk 0:08:42]} 17. Rxd7 {[%clk 0:17:19]}  Qxd7 {[%clk 0:08:51]} 18. Nc5 {[%clk 0:17:26]}  Qf7 {[%clk 0:08:29]} 19. f3 {[%clk 0:17:27]}  Bc8 {[%clk 0:07:05]} 20. Bd2 {[%clk 0:16:49]}  a5 {[%clk 0:06:14]} 21. Be1 {[%clk 0:16:19]}  Bf5 {[%clk 0:05:52]} 22. Bg3 {[%clk 0:16:14]}  Kh8 {[%clk 0:05:34]} 23. Qd2 {[%clk 0:15:50]}  Rfe8 {[%clk 0:05:04]} 24. Be5 {[%clk 0:15:20]}  Ra7 {[%clk 0:04:22]} 25. a3 {[%clk 0:12:08]}  Rea8 {[%clk 0:03:25]} 26. h3 {[%clk 0:10:51]}  Bg6 {[%clk 0:03:02]} 27. Kh2 {[%clk 0:10:30]}  Kg8 {[%clk 0:02:34]} 28. Bc4 {[%clk 0:08:49]}  Kh8 {[%clk 0:02:32]} 29. Qe1 {[%clk 0:08:48]}  Kg8 {[%clk 0:02:04]} 30. Qg3 {[%clk 0:08:43]}  Re8 {[%clk 0:01:50]} 31. Ne4 {[%clk 0:08:37]}  Qe7 {[%clk 0:01:35]} 32. h4 {[%clk 0:07:39]}  Kh8 {[%clk 0:01:14]} 33. Nd6 {[%clk 0:03:47]}  Rf8 {[%clk 0:01:18]} 34. Re1 {[%clk 0:02:37]}  Rd7 {[%clk 0:01:08]} 35. axb4 {[%clk 0:01:59]}  axb4 {[%clk 0:01:12]} 36. Rc1 {[%clk 0:01:38]}  Ne3 {[%clk 0:00:45]} 37. Ba6 {[%clk 0:00:54]}  Qd8 {[%clk 0:00:36]} 38. Rxc6 {[%clk 0:00:58]}  Qa5 {[%clk 0:00:22]} 39. Qg5 {[%clk 0:01:03]}  Nd5 {[%clk 0:00:11]} 40. Bc4 {[%clk 0:01:05]}  Ne7 {[%clk 0:00:16]} 41. Bxg7+ {[%clk 0:00:59]}  Kxg7 {[%clk 0:00:18]} 42. Qxa5 {[%clk 0:01:09]} 1-0


[Site "http://www.chessbomb.com"]

[Event "Meltwater Champions Chess Tour 2022: Chessable Masters | Prelims"]
[White "Tari, Aryan"]
[Black "Van Foreest, Jorden"]
[WhiteFideId "1510045"]
[BlackFideId "1039784"]
[WhiteElo "2531"]
[BlackElo "2645"]
[Result "1-0"]
[Round "10"]
[TimeControl "900+10"]
[Date "2022.05.21"]
[WhiteClock "0:00:35"]
[BlackClock "0:00:45"]

1. e4 {[%clk 0:15:20]}  e6 {[%clk 0:15:20]} 2. d4 {[%clk 0:15:26]}  d5 {[%clk 0:15:28]} 3. Nc3 {[%clk 0:15:35]}  Bb4 {[%clk 0:15:36]} 4. e5 {[%clk 0:15:37]}  c5 {[%clk 0:15:43]} 5. Bd2 {[%clk 0:15:17]}  Nc6 {[%clk 0:13:52]} 6. Nb5 {[%clk 0:15:22]}  Bxd2+ {[%clk 0:14:00]} 7. Qxd2 {[%clk 0:15:32]}  Nxd4 {[%clk 0:14:07]} 8. Nxd4 {[%clk 0:15:38]}  cxd4 {[%clk 0:14:15]} 9. f4 {[%clk 0:15:45]}  Qb6 {[%clk 0:13:46]} 10. O-O-O {[%clk 0:15:47]}  Ne7 {[%clk 0:13:50]} 11. Nf3 {[%clk 0:14:59]}  Nc6 {[%clk 0:13:14]} 12. g4 {[%clk 0:13:33]}  Bd7 {[%clk 0:13:15]} 13. h4 {[%clk 0:12:22]}  O-O-O {[%clk 0:11:37]} 14. Nxd4 {[%clk 0:11:39]}  h5 {[%clk 0:10:36]} 15. Nb5 {[%clk 0:10:46]}  Kb8 {[%clk 0:07:51]} 16. Nd6 {[%clk 0:10:42]}  Be8 {[%clk 0:07:20]} 17. g5 {[%clk 0:09:26]}  Qc7 {[%clk 0:06:33]} 18. Rh3 {[%clk 0:09:10]}  f6 {[%clk 0:06:20]} 19. Rb3 {[%clk 0:07:55]}  Na5 {[%clk 0:06:25]} 20. Rc3 {[%clk 0:07:17]}  Nc6 {[%clk 0:06:31]} 21. Qe1 {[%clk 0:05:34]}  fxe5 {[%clk 0:06:30]} 22. fxe5 {[%clk 0:05:43]}  Rf8 {[%clk 0:05:44]} 23. Qg3 {[%clk 0:05:14]}  Ka8 {[%clk 0:04:29]} 24. Bh3 {[%clk 0:05:01]}  Bd7 {[%clk 0:04:31]} 25. Kb1 {[%clk 0:04:36]}  Qa5 {[%clk 0:03:46]} 26. Bg2 {[%clk 0:03:53]}  Qa4 {[%clk 0:03:43]} 27. g6 {[%clk 0:03:15]}  Rf4 {[%clk 0:02:54]} 28. b3 {[%clk 0:02:57]}  Qa5 {[%clk 0:03:02]} 29. Rxc6 {[%clk 0:01:53]}  Rg4 {[%clk 0:03:08]} 30. Qc3 {[%clk 0:02:02]}  Qxc3 {[%clk 0:03:12]} 31. Rxc3 {[%clk 0:02:12]}  Rxg2 {[%clk 0:03:21]} 32. Rc7 {[%clk 0:02:01]}  Be8 {[%clk 0:03:31]} 33. Nxb7 {[%clk 0:01:10]}  Rb8 {[%clk 0:03:11]} 34. Na5 {[%clk 0:01:17]}  Rg4 {[%clk 0:01:18]} 35. Kc1 {[%clk 0:00:39]}  Rf4 {[%clk 0:01:08]} 36. Rxg7 {[%clk 0:00:43]}  Rc8 {[%clk 0:01:18]} 37. Rg8 {[%clk 0:00:27]}  Rg4 {[%clk 0:01:22]} 38. g7 {[%clk 0:00:19]}  Bd7 {[%clk 0:01:09]} 39. Rf1 {[%clk 0:00:17]}  Kb8 {[%clk 0:00:47]} 40. Rxc8+ {[%clk 0:00:26]}  Bxc8 {[%clk 0:00:45]} 41. Rf7 {[%clk 0:00:35]} 1-0


[Site "http://www.chessbomb.com"]

[Event "Meltwater Champions Chess Tour 2022: Chessable Masters | Prelims"]
[White "Grandelius, Nils"]
[Black "Mamedyarov, Shakhriyar"]
[WhiteFideId "1710400"]
[BlackFideId "13401319"]
[WhiteElo "2652"]
[BlackElo "2699"]
[Result "0-1"]
[Round "10"]
[TimeControl "900+10"]
[Date "2022.05.21"]
[WhiteClock "0:00:02"]
[BlackClock "0:03:37"]

1. Nf3 {[%clk 0:15:20]}  Nf6 {[%clk 0:15:20]} 2. g3 {[%clk 0:15:27]}  d5 {[%clk 0:15:15]} 3. Bg2 {[%clk 0:15:31]}  e6 {[%clk 0:15:19]} 4. O-O {[%clk 0:15:36]}  Be7 {[%clk 0:15:27]} 5. d4 {[%clk 0:15:38]}  O-O {[%clk 0:15:36]} 6. c4 {[%clk 0:15:44]}  dxc4 {[%clk 0:15:44]} 7. Qa4 {[%clk 0:15:43]}  b6 {[%clk 0:15:50]} 8. Ne5 {[%clk 0:12:58]}  Qxd4 {[%clk 0:15:48]} 9. Bxa8 {[%clk 0:13:06]}  Qxe5 {[%clk 0:15:55]} 10. Nc3 {[%clk 0:13:01]}  Qh5 {[%clk 0:14:59]} 11. Bg2 {[%clk 0:12:32]}  Bc5 {[%clk 0:12:48]} 12. Qxc4 {[%clk 0:11:08]}  Ba6 {[%clk 0:12:55]} 13. Qh4 {[%clk 0:09:40]}  Bxe2 {[%clk 0:12:09]} 14. Qxh5 {[%clk 0:08:37]}  Bxh5 {[%clk 0:12:19]} 15. Bf4 {[%clk 0:08:35]}  Na6 {[%clk 0:10:07]} 16. a3 {[%clk 0:06:52]}  Bd6 {[%clk 0:07:28]} 17. Bxd6 {[%clk 0:03:37]}  cxd6 {[%clk 0:07:38]} 18. Rfe1 {[%clk 0:03:45]}  Nc5 {[%clk 0:07:09]} 19. b4 {[%clk 0:03:15]}  Nb3 {[%clk 0:07:07]} 20. Ra2 {[%clk 0:03:24]}  d5 {[%clk 0:06:31]} 21. Nb5 {[%clk 0:02:50]}  a6 {[%clk 0:06:30]} 22. Rb2 {[%clk 0:02:50]}  axb5 {[%clk 0:06:22]} 23. Rxb3 {[%clk 0:02:59]}  Rc8 {[%clk 0:06:27]} 24. h3 {[%clk 0:01:16]}  Ne8 {[%clk 0:05:40]} 25. g4 {[%clk 0:01:02]}  Bg6 {[%clk 0:05:48]} 26. f4 {[%clk 0:01:12]}  Bc2 {[%clk 0:04:48]} 27. Rb2 {[%clk 0:00:43]}  d4 {[%clk 0:03:40]} 28. Kf2 {[%clk 0:00:16]}  d3 {[%clk 0:03:29]} 29. Ke3 {[%clk 0:00:02]}  Nd6 {[%clk 0:03:37]} 0-1


[Site "http://www.chessbomb.com"]

[Event "Meltwater Champions Chess Tour 2022: Chessable Masters | Prelims"]
[White "Praggnanandhaa, R"]
[Black "Hansen, Eric"]
[WhiteFideId "25059530"]
[BlackFideId "2606771"]
[WhiteElo "1927"]
[BlackElo "2579"]
[Result "1-0"]
[Round "10"]
[TimeControl "900+10"]
[Date "2022.05.21"]
[WhiteClock "0:00:42"]
[BlackClock "0:00:14"]

1. d4 {[%clk 0:15:20]}  Nf6 {[%clk 0:15:20]} 2. c4 {[%clk 0:15:27]}  e6 {[%clk 0:15:14]} 3. Nf3 {[%clk 0:15:35]}  d5 {[%clk 0:15:07]} 4. Nc3 {[%clk 0:15:42]}  c6 {[%clk 0:13:24]} 5. Bg5 {[%clk 0:15:35]}  h6 {[%clk 0:13:17]} 6. Bh4 {[%clk 0:15:42]}  Nbd7 {[%clk 0:13:05]} 7. e3 {[%clk 0:15:48]}  Be7 {[%clk 0:12:21]} 8. Qc2 {[%clk 0:15:55]}  O-O {[%clk 0:12:05]} 9. Rd1 {[%clk 0:16:02]}  b6 {[%clk 0:12:00]} 10. Be2 {[%clk 0:14:18]}  Bb7 {[%clk 0:11:53]} 11. O-O {[%clk 0:14:24]}  Rc8 {[%clk 0:11:43]} 12. e4 {[%clk 0:12:58]}  Nxe4 {[%clk 0:11:46]} 13. Bxe7 {[%clk 0:13:04]}  Qxe7 {[%clk 0:11:54]} 14. Nxe4 {[%clk 0:13:14]}  dxe4 {[%clk 0:12:04]} 15. Qxe4 {[%clk 0:13:23]}  Nf6 {[%clk 0:12:13]} 16. Qe3 {[%clk 0:13:28]}  Rfd8 {[%clk 0:07:28]} 17. Ne5 {[%clk 0:10:31]}  c5 {[%clk 0:07:19]} 18. dxc5 {[%clk 0:10:33]}  bxc5 {[%clk 0:06:00]} 19. Bf3 {[%clk 0:07:01]}  Bxf3 {[%clk 0:05:53]} 20. Qxf3 {[%clk 0:07:11]}  Qc7 {[%clk 0:05:57]} 21. Qe3 {[%clk 0:07:07]}  Rb8 {[%clk 0:05:36]} 22. b3 {[%clk 0:06:49]}  Ne8 {[%clk 0:03:22]} 23. Rd3 {[%clk 0:05:15]}  Nd6 {[%clk 0:03:05]} 24. g4 {[%clk 0:03:38]}  Ne8 {[%clk 0:02:25]} 25. Rfd1 {[%clk 0:03:37]}  Rxd3 {[%clk 0:02:34]} 26. Rxd3 {[%clk 0:03:43]}  Nf6 {[%clk 0:02:43]} 27. Kg2 {[%clk 0:02:55]}  Rb6 {[%clk 0:02:16]} 28. h4 {[%clk 0:02:43]}  Rd6 {[%clk 0:02:17]} 29. g5 {[%clk 0:02:13]}  hxg5 {[%clk 0:02:25]} 30. hxg5 {[%clk 0:02:23]}  Rxd3 {[%clk 0:02:34]} 31. Nxd3 {[%clk 0:02:31]}  Nd7 {[%clk 0:02:41]} 32. Qe4 {[%clk 0:02:34]}  Qd6 {[%clk 0:02:19]} 33. g6 {[%clk 0:01:25]}  Kf8 {[%clk 0:00:38]} 34. Qf3 {[%clk 0:00:39]}  f5 {[%clk 0:00:32]} 35. Nf4 {[%clk 0:00:40]}  Ke7 {[%clk 0:00:36]} 36. Qe3 {[%clk 0:00:33]}  Ne5 {[%clk 0:00:35]} 37. b4 {[%clk 0:00:17]}  Nxc4 {[%clk 0:00:20]} 38. Qxc5 {[%clk 0:00:25]}  Qxc5 {[%clk 0:00:12]} 39. bxc5 {[%clk 0:00:35]}  Ne5 {[%clk 0:00:21]} 40. Kg3 {[%clk 0:00:42]}  Kf6 {[%clk 0:00:27]} 41. Kh4 {[%clk 0:00:17]}  Nc6 {[%clk 0:00:31]} 42. Kh5 {[%clk 0:00:14]}  Ne5 {[%clk 0:00:17]} 43. f3 {[%clk 0:00:13]}  Nc6 {[%clk 0:00:16]} 44. Nd3 {[%clk 0:00:15]}  e5 {[%clk 0:00:21]} 45. a3 {[%clk 0:00:14]}  e4 {[%clk 0:00:22]} 46. fxe4 {[%clk 0:00:22]}  fxe4 {[%clk 0:00:31]} 47. Nf4 {[%clk 0:00:28]}  Kf5 {[%clk 0:00:37]} 48. Ng2 {[%clk 0:00:34]}  Ne5 {[%clk 0:00:23]} 49. Ne3+ {[%clk 0:00:16]}  Kf4 {[%clk 0:00:32]} 50. Nd5+ {[%clk 0:00:17]}  Kf3 {[%clk 0:00:36]} 51. Kg5 {[%clk 0:00:25]}  e3 {[%clk 0:00:44]} 52. Nc3 {[%clk 0:00:29]}  e2 {[%clk 0:00:11]} 53. Nxe2 {[%clk 0:00:38]}  Kxe2 {[%clk 0:00:21]} 54. Kf5 {[%clk 0:00:47]}  Nc6 {[%clk 0:00:28]} 55. Ke6 {[%clk 0:00:15]}  Kd3 {[%clk 0:00:37]} 56. Kf7 {[%clk 0:00:14]}  Kc4 {[%clk 0:00:27]} 57. Kxg7 {[%clk 0:00:22]}  Ne5 {[%clk 0:00:15]} 58. c6 {[%clk 0:00:17]}  Nxc6 {[%clk 0:00:11]} 59. Kf6 {[%clk 0:00:25]}  Nb8 {[%clk 0:00:11]} 60. g7 {[%clk 0:00:33]}  Nd7+ {[%clk 0:00:14]} 61. Kf5 {[%clk 0:00:42]} 1-0


[Site "http://www.chessbomb.com"]

[Event "Meltwater Champions Chess Tour 2022: Chessable Masters | Prelims"]
[White "Harikrishna, Pentala"]
[Black "Ding, Liren"]
[WhiteFideId "5007003"]
[BlackFideId "8603677"]
[WhiteElo "2624"]
[BlackElo "2836"]
[Result "0-1"]
[Round "10"]
[TimeControl "900+10"]
[Date "2022.05.21"]
[WhiteClock "0:06:26"]
[BlackClock "0:06:57"]

1. e4 {[%clk 0:15:20]}  c5 {[%clk 0:15:20]} 2. c3 {[%clk 0:15:27]}  Nf6 {[%clk 0:15:22]} 3. e5 {[%clk 0:15:35]}  Nd5 {[%clk 0:15:32]} 4. Bc4 {[%clk 0:15:45]}  Nb6 {[%clk 0:15:29]} 5. Bb3 {[%clk 0:15:53]}  d6 {[%clk 0:15:22]} 6. e6 {[%clk 0:15:42]}  Bxe6 {[%clk 0:15:21]} 7. Bxe6 {[%clk 0:15:51]}  fxe6 {[%clk 0:15:31]} 8. d4 {[%clk 0:15:58]}  cxd4 {[%clk 0:15:24]} 9. cxd4 {[%clk 0:16:07]}  Nc6 {[%clk 0:15:30]} 10. Nf3 {[%clk 0:16:15]}  g6 {[%clk 0:15:14]} 11. Ng5 {[%clk 0:13:18]}  Qd7 {[%clk 0:15:20]} 12. Qf3 {[%clk 0:13:27]}  O-O-O {[%clk 0:13:35]} 13. Nf7 {[%clk 0:12:44]}  Bg7 {[%clk 0:13:43]} 14. Nxd8 {[%clk 0:12:34]}  Nxd4 {[%clk 0:12:24]} 15. Qd3 {[%clk 0:11:33]}  Kxd8 {[%clk 0:10:01]} 16. Nc3 {[%clk 0:11:15]}  Qc6 {[%clk 0:09:01]} 17. O-O {[%clk 0:11:02]}  Qc4 {[%clk 0:09:10]} 18. Qd1 {[%clk 0:10:14]}  Nd5 {[%clk 0:09:07]} 19. Nxd5 {[%clk 0:08:47]}  exd5 {[%clk 0:09:17]} 20. Be3 {[%clk 0:08:53]}  Ne2+ {[%clk 0:08:53]} 21. Kh1 {[%clk 0:08:55]}  Bxb2 {[%clk 0:08:47]} 22. Bxa7 {[%clk 0:08:14]}  Kd7 {[%clk 0:08:06]} 23. Rb1 {[%clk 0:07:47]}  Nc3 {[%clk 0:08:14]} 24. Qf3 {[%clk 0:07:35]}  Nxb1 {[%clk 0:08:16]} 25. Rxb1 {[%clk 0:07:43]}  Ra8 {[%clk 0:08:15]} 26. Be3 {[%clk 0:06:45]}  Rxa2 {[%clk 0:07:55]} 27. Qh3+ {[%clk 0:06:50]}  Kc7 {[%clk 0:07:45]} 28. Qxh7 {[%clk 0:06:46]}  Qe4 {[%clk 0:07:50]} 29. Re1 {[%clk 0:06:42]}  Ra1 {[%clk 0:07:08]} 30. Rxa1 {[%clk 0:06:51]}  Bxa1 {[%clk 0:07:18]} 31. h3 {[%clk 0:06:44]}  Kd7 {[%clk 0:06:50]} 32. Qg8 {[%clk 0:06:30]}  Be5 {[%clk 0:06:49]} 33. f4 {[%clk 0:06:17]}  Qxe3 {[%clk 0:06:48]} 34. fxe5 {[%clk 0:06:26]}  Qe1+ {[%clk 0:06:57]} 0-1


[Site "http://www.chessbomb.com"]

[Event "Meltwater Champions Chess Tour 2022: Chessable Masters | Prelims"]
[White "Jones, Gawain C B"]
[Black "Anton Guijarro, David"]
[WhiteFideId "409561"]
[BlackFideId "2285525"]
[WhiteElo "2630"]
[BlackElo "2633"]
[Result "1-0"]
[Round "10"]
[TimeControl "900+10"]
[Date "2022.05.21"]
[WhiteClock "0:03:25"]
[BlackClock "0:00:49"]

1. e4 {[%clk 0:15:20]}  e5 {[%clk 0:15:20]} 2. Nf3 {[%clk 0:15:28]}  Nc6 {[%clk 0:15:27]} 3. Bb5 {[%clk 0:15:37]}  a6 {[%clk 0:15:34]} 4. Ba4 {[%clk 0:15:45]}  Nf6 {[%clk 0:15:42]} 5. d4 {[%clk 0:15:53]}  exd4 {[%clk 0:15:05]} 6. O-O {[%clk 0:16:01]}  Be7 {[%clk 0:14:23]} 7. e5 {[%clk 0:16:07]}  Ne4 {[%clk 0:13:53]} 8. Nxd4 {[%clk 0:16:13]}  O-O {[%clk 0:13:34]} 9. Nf5 {[%clk 0:16:03]}  d5 {[%clk 0:13:33]} 10. Nxe7+ {[%clk 0:15:59]}  Nxe7 {[%clk 0:13:40]} 11. c3 {[%clk 0:16:04]}  Nc5 {[%clk 0:11:05]} 12. Bc2 {[%clk 0:16:11]}  Bf5 {[%clk 0:10:51]} 13. Na3 {[%clk 0:16:19]}  Qd7 {[%clk 0:10:19]} 14. Be3 {[%clk 0:16:24]}  Ne6 {[%clk 0:09:47]} 15. g4 {[%clk 0:16:14]}  Bxc2 {[%clk 0:09:33]} 16. Nxc2 {[%clk 0:16:23]}  g5 {[%clk 0:06:11]} 17. h4 {[%clk 0:12:35]}  Ng6 {[%clk 0:06:17]} 18. hxg5 {[%clk 0:11:55]}  Nxe5 {[%clk 0:06:24]} 19. f4 {[%clk 0:11:14]}  Nc4 {[%clk 0:06:28]} 20. Bc1 {[%clk 0:09:30]}  Rfe8 {[%clk 0:04:31]} 21. b3 {[%clk 0:09:03]}  Na5 {[%clk 0:03:44]} 22. Ne3 {[%clk 0:08:00]}  Rad8 {[%clk 0:03:24]} 23. Nf5 {[%clk 0:07:45]}  Ng7 {[%clk 0:02:32]} 24. Nh6+ {[%clk 0:07:39]}  Kh8 {[%clk 0:02:41]} 25. Qd4 {[%clk 0:07:07]}  Nc6 {[%clk 0:00:33]} 26. Qf2 {[%clk 0:05:42]}  d4 {[%clk 0:00:37]} 27. Bb2 {[%clk 0:04:16]}  d3 {[%clk 0:00:46]} 28. Rfe1 {[%clk 0:04:19]}  Rxe1+ {[%clk 0:00:43]} 29. Rxe1 {[%clk 0:04:27]}  Re8 {[%clk 0:00:40]} 30. Rxe8+ {[%clk 0:03:59]}  Qxe8 {[%clk 0:00:48]} 31. c4 {[%clk 0:04:06]}  Qd7 {[%clk 0:00:40]} 32. Bc3 {[%clk 0:03:53]}  Nd8 {[%clk 0:00:39]} 33. Bxg7+ {[%clk 0:03:17]}  Kxg7 {[%clk 0:00:48]} 34. Qb2+ {[%clk 0:03:26]}  Kf8 {[%clk 0:00:52]} 35. Qh8+ {[%clk 0:03:33]}  Ke7 {[%clk 0:00:49]} 36. Nf5+ {[%clk 0:03:25]} 1-0


[Site "http://www.chessbomb.com"]